{"text_format":"1","workbook":"xlsx","n_sheets":29,"sheets":["Sheet1","الخــام","وحدة القياس","التمريض","المدير الطبي","الصيانة العامة","الصيانة الطبية","الجودة","الشؤون الهندسية","السجلات الطبية","العمليات","المختبر","العيادات","الأشعة","الصيدلية","التموين","الطوارئ","ت طوارئ","الأمن","الوفيات","تجربة المريض","العدوى","العلاقات العامة","التغذية","التدريب","الإدارة المناوبة","العلاج الطبيعي","تنويم الرجال","تنويم النساء"],"not_rendered":{"charts":0,"images":1,"macros":1,"external_links":0,"defined_names":1,"comments":0,"pivot_tables":0},"unopened":[],"bounds":{"document_bytes":16777216,"sheet_cells":100000,"rows_first":2000,"rows_last":500,"rows_between":2000,"halvings":0,"cell_chars":16384,"cell_head_chars":4096},"cells_cut":0,"cells_raw":0,"read":"whole","date_system":"1900"}

{"sheet":"Sheet1","index":0,"n_rows":6,"n_cols":4,"rows_kept":6,"cut":false,"hidden":false,"merged":[]}
["منتظرة",null,null,{"$f":"\"Sheet1!$A$1:$A$\"&COUNTA(A:A)","v":"Sheet1!$A$1:$A$6"}]
["منجزة"]
["متأخرة"]
["جاري العمل عليها"]
["يحتاج دعم مدير المستشفى"]
["."]

{"sheet":"الخــام","index":1,"n_rows":38,"n_cols":8,"rows_kept":38,"cut":false,"hidden":false,"merged":[[1,2,1,4]]}
[]
[null,null,"مهام رئيس قسم (    ) بتاريخ  2023/09/01",null,null,null,"معدل الانجاز"]
[null,null,null,null,null,null,{"$f":"D38/(B38-C38)","v":{"$error":"#DIV/0!"}}]
[null,"م","المهام الخاصة برئيس قسم ","الحالة","التاريخ ","الادارة المسؤولة ","الإجراءات المتخذة "]
[null,1,null,null,null,null,null,{"$f":"Sheet1!D1","v":"Sheet1!$A$1:$A$6"}]
[null,2,null,"."]
[null,3,null,"."]
[null,4,null,"."]
[null,5]
[null,6,null,"."]
[null,7]
[null,8]
[null,9]
[null,10]
[null,11]
[null,12]
[null,13]
[null,14]
[null,15]
[null,16]
[null,17]
[null,18]
[null,19]
[null,20]
[null,21]
[null,22]
[null,23]
[null,24]
[null,25]
[null,26]
[null,27]
[null,28]
[null,29,null,"."]
[null,30,null,"."]
[null,31,null,"."]
[]
[null,"عدد المهام","يحتاج دعم مدير المستشفى","منجزة","متأخرة","منتظرة","جاري العمل عليها"]
[null,{"$f":"SUM(C38,D38,E38,F38,G38)","v":0},{"$f":"COUNTIF(D5:D35,C37)","v":0},{"$f":"COUNTIF(D5:D35,D37)","v":0},{"$f":"COUNTIF(D5:D35,E37)","v":0},{"$f":"COUNTIF(D5:D35,F37)","v":0},{"$f":"COUNTIF(D5:D35,G37)","v":0}]

{"sheet":"وحدة القياس","index":2,"n_rows":38,"n_cols":8,"rows_kept":38,"cut":false,"hidden":false,"merged":[[1,2,1,4]]}
[]
[null,null,"مهام رئيس قسم ( وحدة القياس و تحسين المخرجات ) بتاريخ  2023/09/01",null,null,null,"معدل الانجاز"]
[null,null,null,null,null,null,{"$f":"D38/(B38-C38)","v":{"$error":"#DIV/0!"}}]
[null,"م","المهام الخاصة برئيس وحدة القياس و تحسين المخرجات","الحالة","التاريخ ","الادارة المسؤولة ","الإجراءات المتخذة "]
[null,1,"تحديد مهام كل طبيب/ـه بطريقة قابلة للقياس والتقييم وبما يضمن معرفة المريض من هو الطبيب/ـه المعني بتقديم الخدمة له فور دخوله للطوارئ ",null,null,null,null,{"$f":"Sheet1!D1","v":"Sheet1!$A$1:$A$6"}]
[null,2,null,"."]
[null,3,null,"."]
[null,4,null,"."]
[null,5]
[null,6,null,"."]
[null,7]
[null,8]
[null,9]
[null,10]
[null,11]
[null,12]
[null,13]
[null,14]
[null,15]
[null,16]
[null,17]
[null,18]
[null,19]
[null,20]
[null,21]
[null,22]
[null,23]
[null,24]
[null,25]
[null,26]
[null,27]
[null,28,null,"."]
[null,29,null,"."]
[null,30,null,"."]
[null,31,null,"."]
[]
[null,"عدد المهام","يحتاج دعم مدير المستشفى","منجزة","متأخرة","منتظرة","جاري العمل عليها"]
[null,{"$f":"SUM(C38,D38,E38,F38,G38)","v":0},{"$f":"COUNTIF(D5:D35,C37)","v":0},{"$f":"COUNTIF(D5:D35,D37)","v":0},{"$f":"COUNTIF(D5:D35,E37)","v":0},{"$f":"COUNTIF(D5:D35,F37)","v":0},{"$f":"COUNTIF(D5:D35,G37)","v":0}]

{"sheet":"التمريض","index":3,"n_rows":38,"n_cols":8,"rows_kept":38,"cut":false,"hidden":false,"merged":[[1,2,1,4]]}
[]
[null,null,"مهام رئيس قسم (    ) بتاريخ  2023/09/01",null,null,null,"معدل الانجاز"]
[null,null,null,null,null,null,{"$f":"D38/(B38-C38)","v":{"$error":"#DIV/0!"}}]
[null,"م","المهام الخاصة برئيس قسم ","الحالة","التاريخ ","الادارة المسؤولة ","الإجراءات المتخذة "]
[null,1,null,null,null,null,null,{"$f":"Sheet1!D1","v":"Sheet1!$A$1:$A$6"}]
[null,2,null,"."]
[null,3,null,"."]
[null,4,null,"."]
[null,5]
[null,6,null,"."]
[null,7]
[null,8]
[null,9]
[null,10]
[null,11]
[null,12]
[null,13]
[null,14]
[null,15]
[null,16]
[null,17]
[null,18]
[null,19]
[null,20]
[null,21]
[null,22]
[null,23]
[null,24]
[null,25]
[null,26]
[null,27]
[null,28]
[null,29,null,"."]
[null,30,null,"."]
[null,31,null,"."]
[]
[null,"عدد المهام","يحتاج دعم مدير المستشفى","منجزة","متأخرة","منتظرة","جاري العمل عليها"]
[null,{"$f":"SUM(C38,D38,E38,F38,G38)","v":0},{"$f":"COUNTIF(D5:D35,C37)","v":0},{"$f":"COUNTIF(D5:D35,D37)","v":0},{"$f":"COUNTIF(D5:D35,E37)","v":0},{"$f":"COUNTIF(D5:D35,F37)","v":0},{"$f":"COUNTIF(D5:D35,G37)","v":0}]

{"sheet":"المدير الطبي","index":4,"n_rows":38,"n_cols":8,"rows_kept":38,"cut":false,"hidden":false,"merged":[[1,2,1,4]]}
[]
[null,null,"مهام رئيس قسم (    ) بتاريخ  2023/09/01",null,null,null,"معدل الانجاز"]
[null,null,null,null,null,null,{"$f":"D38/(B38-C38)","v":{"$error":"#DIV/0!"}}]
[null,"م","المهام الخاصة برئيس قسم ","الحالة","التاريخ ","الادارة المسؤولة ","الإجراءات المتخذة "]
[null,1,null,null,null,null,null,{"$f":"Sheet1!D1","v":"Sheet1!$A$1:$A$6"}]
[null,2,null,"."]
[null,3,null,"."]
[null,4,null,"."]
[null,5]
[null,6,null,"."]
[null,7]
[null,8]
[null,9]
[null,10]
[null,11]
[null,12]
[null,13]
[null,14]
[null,15]
[null,16]
[null,17]
[null,18]
[null,19]
[null,20]
[null,21]
[null,22]
[null,23]
[null,24]
[null,25]
[null,26]
[null,27]
[null,28]
[null,29,null,"."]
[null,30,null,"."]
[null,31,null,"."]
[]
[null,"عدد المهام","يحتاج دعم مدير المستشفى","منجزة","متأخرة","منتظرة","جاري العمل عليها"]
[null,{"$f":"SUM(C38,D38,E38,F38,G38)","v":0},{"$f":"COUNTIF(D5:D35,C37)","v":0},{"$f":"COUNTIF(D5:D35,D37)","v":0},{"$f":"COUNTIF(D5:D35,E37)","v":0},{"$f":"COUNTIF(D5:D35,F37)","v":0},{"$f":"COUNTIF(D5:D35,G37)","v":0}]

{"sheet":"الصيانة العامة","index":5,"n_rows":38,"n_cols":8,"rows_kept":38,"cut":false,"hidden":false,"merged":[[1,2,1,4]]}
[]
[null,null,"مهام رئيس قسم (    ) بتاريخ  2023/09/01",null,null,null,"معدل الانجاز"]
[null,null,null,null,null,null,{"$f":"D38/(B38-C38)","v":{"$error":"#DIV/0!"}}]
[null,"م","المهام الخاصة برئيس قسم ","الحالة","التاريخ ","الادارة المسؤولة ","الإجراءات المتخذة "]
[null,1,null,null,null,null,null,{"$f":"Sheet1!D1","v":"Sheet1!$A$1:$A$6"}]
[null,2,null,"."]
[null,3,null,"."]
[null,4,null,"."]
[null,5]
[null,6,null,"."]
[null,7]
[null,8]
[null,9]
[null,10]
[null,11]
[null,12]
[null,13]
[null,14]
[null,15]
[null,16]
[null,17]
[null,18]
[null,19]
[null,20]
[null,21]
[null,22]
[null,23]
[null,24]
[null,25]
[null,26]
[null,27]
[null,28]
[null,29,null,"."]
[null,30,null,"."]
[null,31,null,"."]
[]
[null,"عدد المهام","يحتاج دعم مدير المستشفى","منجزة","متأخرة","منتظرة","جاري العمل عليها"]
[null,{"$f":"SUM(C38,D38,E38,F38,G38)","v":0},{"$f":"COUNTIF(D5:D35,C37)","v":0},{"$f":"COUNTIF(D5:D35,D37)","v":0},{"$f":"COUNTIF(D5:D35,E37)","v":0},{"$f":"COUNTIF(D5:D35,F37)","v":0},{"$f":"COUNTIF(D5:D35,G37)","v":0}]

{"sheet":"الصيانة الطبية","index":6,"n_rows":38,"n_cols":8,"rows_kept":38,"cut":false,"hidden":false,"merged":[[1,2,1,4]]}
[]
[null,null,"مهام رئيس قسم (    ) بتاريخ  2023/09/01",null,null,null,"معدل الانجاز"]
[null,null,null,null,null,null,{"$f":"D38/(B38-C38)","v":{"$error":"#DIV/0!"}}]
[null,"م","المهام الخاصة برئيس قسم ","الحالة","التاريخ ","الادارة المسؤولة ","الإجراءات المتخذة "]
[null,1,null,null,null,null,null,{"$f":"Sheet1!D1","v":"Sheet1!$A$1:$A$6"}]
[null,2,null,"."]
[null,3,null,"."]
[null,4,null,"."]
[null,5]
[null,6,null,"."]
[null,7]
[null,8]
[null,9]
[null,10]
[null,11]
[null,12]
[null,13]
[null,14]
[null,15]
[null,16]
[null,17]
[null,18]
[null,19]
[null,20]
[null,21]
[null,22]
[null,23]
[null,24]
[null,25]
[null,26]
[null,27]
[null,28]
[null,29,null,"."]
[null,30,null,"."]
[null,31,null,"."]
[]
[null,"عدد المهام","يحتاج دعم مدير المستشفى","منجزة","متأخرة","منتظرة","جاري العمل عليها"]
[null,{"$f":"SUM(C38,D38,E38,F38,G38)","v":0},{"$f":"COUNTIF(D5:D35,C37)","v":0},{"$f":"COUNTIF(D5:D35,D37)","v":0},{"$f":"COUNTIF(D5:D35,E37)","v":0},{"$f":"COUNTIF(D5:D35,F37)","v":0},{"$f":"COUNTIF(D5:D35,G37)","v":0}]

{"sheet":"الجودة","index":7,"n_rows":38,"n_cols":8,"rows_kept":38,"cut":false,"hidden":false,"merged":[[1,2,1,4]]}
[]
[null,null,"مهام رئيس قسم (    ) بتاريخ  2023/09/01",null,null,null,"معدل الانجاز"]
[null,null,null,null,null,null,{"$f":"D38/(B38-C38)","v":{"$error":"#DIV/0!"}}]
[null,"م","المهام الخاصة برئيس قسم ","الحالة","التاريخ ","الادارة المسؤولة ","الإجراءات المتخذة "]
[null,1,null,null,null,null,null,{"$f":"Sheet1!D1","v":"Sheet1!$A$1:$A$6"}]
[null,2,null,"."]
[null,3,null,"."]
[null,4,null,"."]
[null,5]
[null,6,null,"."]
[null,7]
[null,8]
[null,9]
[null,10]
[null,11]
[null,12]
[null,13]
[null,14]
[null,15]
[null,16]
[null,17]
[null,18]
[null,19]
[null,20]
[null,21]
[null,22]
[null,23]
[null,24]
[null,25]
[null,26]
[null,27]
[null,28]
[null,29,null,"."]
[null,30,null,"."]
[null,31,null,"."]
[]
[null,"عدد المهام","يحتاج دعم مدير المستشفى","منجزة","متأخرة","منتظرة","جاري العمل عليها"]
[null,{"$f":"SUM(C38,D38,E38,F38,G38)","v":0},{"$f":"COUNTIF(D5:D35,C37)","v":0},{"$f":"COUNTIF(D5:D35,D37)","v":0},{"$f":"COUNTIF(D5:D35,E37)","v":0},{"$f":"COUNTIF(D5:D35,F37)","v":0},{"$f":"COUNTIF(D5:D35,G37)","v":0}]

{"sheet":"الشؤون الهندسية","index":8,"n_rows":38,"n_cols":8,"rows_kept":38,"cut":false,"hidden":false,"merged":[[1,2,1,4]]}
[]
[null,null,"مهام رئيس قسم (    ) بتاريخ  2023/09/01",null,null,null,"معدل الانجاز"]
[null,null,null,null,null,null,{"$f":"D38/(B38-C38)","v":{"$error":"#DIV/0!"}}]
[null,"م","المهام الخاصة برئيس قسم ","الحالة","التاريخ ","الادارة المسؤولة ","الإجراءات المتخذة "]
[null,1,null,null,null,null,null,{"$f":"Sheet1!D1","v":"Sheet1!$A$1:$A$6"}]
[null,2,null,"."]
[null,3,null,"."]
[null,4,null,"."]
[null,5]
[null,6,null,"."]
[null,7]
[null,8]
[null,9]
[null,10]
[null,11]
[null,12]
[null,13]
[null,14]
[null,15]
[null,16]
[null,17]
[null,18]
[null,19]
[null,20]
[null,21]
[null,22]
[null,23]
[null,24]
[null,25]
[null,26]
[null,27]
[null,28]
[null,29,null,"."]
[null,30,null,"."]
[null,31,null,"."]
[]
[null,"عدد المهام","يحتاج دعم مدير المستشفى","منجزة","متأخرة","منتظرة","جاري العمل عليها"]
[null,{"$f":"SUM(C38,D38,E38,F38,G38)","v":0},{"$f":"COUNTIF(D5:D35,C37)","v":0},{"$f":"COUNTIF(D5:D35,D37)","v":0},{"$f":"COUNTIF(D5:D35,E37)","v":0},{"$f":"COUNTIF(D5:D35,F37)","v":0},{"$f":"COUNTIF(D5:D35,G37)","v":0}]

{"sheet":"السجلات الطبية","index":9,"n_rows":38,"n_cols":8,"rows_kept":38,"cut":false,"hidden":false,"merged":[[1,2,1,4]]}
[]
[null,null,"مهام رئيس قسم (    ) بتاريخ  2023/09/01",null,null,null,"معدل الانجاز"]
[null,null,null,null,null,null,{"$f":"D38/(B38-C38)","v":{"$error":"#DIV/0!"}}]
[null,"م","المهام الخاصة برئيس قسم ","الحالة","التاريخ ","الادارة المسؤولة ","الإجراءات المتخذة "]
[null,1,null,null,null,null,null,{"$f":"Sheet1!D1","v":"Sheet1!$A$1:$A$6"}]
[null,2,null,"."]
[null,3,null,"."]
[null,4,null,"."]
[null,5]
[null,6,null,"."]
[null,7]
[null,8]
[null,9]
[null,10]
[null,11]
[null,12]
[null,13]
[null,14]
[null,15]
[null,16]
[null,17]
[null,18]
[null,19]
[null,20]
[null,21]
[null,22]
[null,23]
[null,24]
[null,25]
[null,26]
[null,27]
[null,28]
[null,29,null,"."]
[null,30,null,"."]
[null,31,null,"."]
[]
[null,"عدد المهام","يحتاج دعم مدير المستشفى","منجزة","متأخرة","منتظرة","جاري العمل عليها"]
[null,{"$f":"SUM(C38,D38,E38,F38,G38)","v":0},{"$f":"COUNTIF(D5:D35,C37)","v":0},{"$f":"COUNTIF(D5:D35,D37)","v":0},{"$f":"COUNTIF(D5:D35,E37)","v":0},{"$f":"COUNTIF(D5:D35,F37)","v":0},{"$f":"COUNTIF(D5:D35,G37)","v":0}]

{"sheet":"العمليات","index":10,"n_rows":38,"n_cols":8,"rows_kept":38,"cut":false,"hidden":false,"merged":[[1,2,1,4]]}
[]
[null,null,"مهام رئيس قسم (    ) بتاريخ  2023/09/01",null,null,null,"معدل الانجاز"]
[null,null,null,null,null,null,{"$f":"D38/(B38-C38)","v":{"$error":"#DIV/0!"}}]
[null,"م","المهام الخاصة برئيس قسم ","الحالة","التاريخ ","الادارة المسؤولة ","الإجراءات المتخذة "]
[null,1,null,null,null,null,null,{"$f":"Sheet1!D1","v":"Sheet1!$A$1:$A$6"}]
[null,2,null,"."]
[null,3,null,"."]
[null,4,null,"."]
[null,5]
[null,6,null,"."]
[null,7]
[null,8]
[null,9]
[null,10]
[null,11]
[null,12]
[null,13]
[null,14]
[null,15]
[null,16]
[null,17]
[null,18]
[null,19]
[null,20]
[null,21]
[null,22]
[null,23]
[null,24]
[null,25]
[null,26]
[null,27]
[null,28]
[null,29,null,"."]
[null,30,null,"."]
[null,31,null,"."]
[]
[null,"عدد المهام","يحتاج دعم مدير المستشفى","منجزة","متأخرة","منتظرة","جاري العمل عليها"]
[null,{"$f":"SUM(C38,D38,E38,F38,G38)","v":0},{"$f":"COUNTIF(D5:D35,C37)","v":0},{"$f":"COUNTIF(D5:D35,D37)","v":0},{"$f":"COUNTIF(D5:D35,E37)","v":0},{"$f":"COUNTIF(D5:D35,F37)","v":0},{"$f":"COUNTIF(D5:D35,G37)","v":0}]

{"sheet":"المختبر","index":11,"n_rows":38,"n_cols":8,"rows_kept":38,"cut":false,"hidden":false,"merged":[[1,2,1,4]]}
[]
[null,null,"مهام رئيس قسم (    ) بتاريخ  2023/09/01",null,null,null,"معدل الانجاز"]
[null,null,null,null,null,null,{"$f":"D38/(B38-C38)","v":{"$error":"#DIV/0!"}}]
[null,"م","المهام الخاصة برئيس قسم ","الحالة","التاريخ ","الادارة المسؤولة ","الإجراءات المتخذة "]
[null,1,null,null,null,null,null,{"$f":"Sheet1!D1","v":"Sheet1!$A$1:$A$6"}]
[null,2,null,"."]
[null,3,null,"."]
[null,4,null,"."]
[null,5]
[null,6,null,"."]
[null,7]
[null,8]
[null,9]
[null,10]
[null,11]
[null,12]
[null,13]
[null,14]
[null,15]
[null,16]
[null,17]
[null,18]
[null,19]
[null,20]
[null,21]
[null,22]
[null,23]
[null,24]
[null,25]
[null,26]
[null,27]
[null,28]
[null,29,null,"."]
[null,30,null,"."]
[null,31,null,"."]
[]
[null,"عدد المهام","يحتاج دعم مدير المستشفى","منجزة","متأخرة","منتظرة","جاري العمل عليها"]
[null,{"$f":"SUM(C38,D38,E38,F38,G38)","v":0},{"$f":"COUNTIF(D5:D35,C37)","v":0},{"$f":"COUNTIF(D5:D35,D37)","v":0},{"$f":"COUNTIF(D5:D35,E37)","v":0},{"$f":"COUNTIF(D5:D35,F37)","v":0},{"$f":"COUNTIF(D5:D35,G37)","v":0}]

{"sheet":"العيادات","index":12,"n_rows":38,"n_cols":8,"rows_kept":38,"cut":false,"hidden":false,"merged":[[1,2,1,4]]}
[]
[null,null,"مهام رئيس قسم (    ) بتاريخ  2023/09/01",null,null,null,"معدل الانجاز"]
[null,null,null,null,null,null,{"$f":"D38/(B38-C38)","v":{"$error":"#DIV/0!"}}]
[null,"م","المهام الخاصة برئيس قسم ","الحالة","التاريخ ","الادارة المسؤولة ","الإجراءات المتخذة "]
[null,1,null,null,null,null,null,{"$f":"Sheet1!D1","v":"Sheet1!$A$1:$A$6"}]
[null,2,null,"."]
[null,3,null,"."]
[null,4,null,"."]
[null,5]
[null,6,null,"."]
[null,7]
[null,8]
[null,9]
[null,10]
[null,11]
[null,12]
[null,13]
[null,14]
[null,15]
[null,16]
[null,17]
[null,18]
[null,19]
[null,20]
[null,21]
[null,22]
[null,23]
[null,24]
[null,25]
[null,26]
[null,27]
[null,28]
[null,29,null,"."]
[null,30,null,"."]
[null,31,null,"."]
[]
[null,"عدد المهام","يحتاج دعم مدير المستشفى","منجزة","متأخرة","منتظرة","جاري العمل عليها"]
[null,{"$f":"SUM(C38,D38,E38,F38,G38)","v":0},{"$f":"COUNTIF(D5:D35,C37)","v":0},{"$f":"COUNTIF(D5:D35,D37)","v":0},{"$f":"COUNTIF(D5:D35,E37)","v":0},{"$f":"COUNTIF(D5:D35,F37)","v":0},{"$f":"COUNTIF(D5:D35,G37)","v":0}]

{"sheet":"الأشعة","index":13,"n_rows":38,"n_cols":8,"rows_kept":38,"cut":false,"hidden":false,"merged":[[1,2,1,4]]}
[]
[null,null,"مهام رئيس قسم (    ) بتاريخ  2023/09/01",null,null,null,"معدل الانجاز"]
[null,null,null,null,null,null,{"$f":"D38/(B38-C38)","v":{"$error":"#DIV/0!"}}]
[null,"م","المهام الخاصة برئيس قسم ","الحالة","التاريخ ","الادارة المسؤولة ","الإجراءات المتخذة "]
[null,1,null,null,null,null,null,{"$f":"Sheet1!D1","v":"Sheet1!$A$1:$A$6"}]
[null,2,null,"."]
[null,3,null,"."]
[null,4,null,"."]
[null,5]
[null,6,null,"."]
[null,7]
[null,8]
[null,9]
[null,10]
[null,11]
[null,12]
[null,13]
[null,14]
[null,15]
[null,16]
[null,17]
[null,18]
[null,19]
[null,20]
[null,21]
[null,22]
[null,23]
[null,24]
[null,25]
[null,26]
[null,27]
[null,28]
[null,29,null,"."]
[null,30,null,"."]
[null,31,null,"."]
[]
[null,"عدد المهام","يحتاج دعم مدير المستشفى","منجزة","متأخرة","منتظرة","جاري العمل عليها"]
[null,{"$f":"SUM(C38,D38,E38,F38,G38)","v":0},{"$f":"COUNTIF(D5:D35,C37)","v":0},{"$f":"COUNTIF(D5:D35,D37)","v":0},{"$f":"COUNTIF(D5:D35,E37)","v":0},{"$f":"COUNTIF(D5:D35,F37)","v":0},{"$f":"COUNTIF(D5:D35,G37)","v":0}]

{"sheet":"الصيدلية","index":14,"n_rows":38,"n_cols":8,"rows_kept":38,"cut":false,"hidden":false,"merged":[[1,2,1,4]]}
[]
[null,null,"مهام رئيس قسم (    ) بتاريخ  2023/09/01",null,null,null,"معدل الانجاز"]
[null,null,null,null,null,null,{"$f":"D38/(B38-C38)","v":{"$error":"#DIV/0!"}}]
[null,"م","المهام الخاصة برئيس قسم ","الحالة","التاريخ ","الادارة المسؤولة ","الإجراءات المتخذة "]
[null,1,null,null,null,null,null,{"$f":"Sheet1!D1","v":"Sheet1!$A$1:$A$6"}]
[null,2,null,"."]
[null,3,null,"."]
[null,4,null,"."]
[null,5]
[null,6,null,"."]
[null,7]
[null,8]
[null,9]
[null,10]
[null,11]
[null,12]
[null,13]
[null,14]
[null,15]
[null,16]
[null,17]
[null,18]
[null,19]
[null,20]
[null,21]
[null,22]
[null,23]
[null,24]
[null,25]
[null,26]
[null,27]
[null,28]
[null,29,null,"."]
[null,30,null,"."]
[null,31,null,"."]
[]
[null,"عدد المهام","يحتاج دعم مدير المستشفى","منجزة","متأخرة","منتظرة","جاري العمل عليها"]
[null,{"$f":"SUM(C38,D38,E38,F38,G38)","v":0},{"$f":"COUNTIF(D5:D35,C37)","v":0},{"$f":"COUNTIF(D5:D35,D37)","v":0},{"$f":"COUNTIF(D5:D35,E37)","v":0},{"$f":"COUNTIF(D5:D35,F37)","v":0},{"$f":"COUNTIF(D5:D35,G37)","v":0}]

{"sheet":"التموين","index":15,"n_rows":38,"n_cols":8,"rows_kept":38,"cut":false,"hidden":false,"merged":[[1,2,1,4]]}
[]
[null,null,"مهام رئيس قسم (    ) بتاريخ  2023/09/01",null,null,null,"معدل الانجاز"]
[null,null,null,null,null,null,{"$f":"D38/(B38-C38)","v":{"$error":"#DIV/0!"}}]
[null,"م","المهام الخاصة برئيس قسم ","الحالة","التاريخ ","الادارة المسؤولة ","الإجراءات المتخذة "]
[null,1,null,null,null,null,null,{"$f":"Sheet1!D1","v":"Sheet1!$A$1:$A$6"}]
[null,2,null,"."]
[null,3,null,"."]
[null,4,null,"."]
[null,5]
[null,6,null,"."]
[null,7]
[null,8]
[null,9]
[null,10]
[null,11]
[null,12]
[null,13]
[null,14]
[null,15]
[null,16]
[null,17]
[null,18]
[null,19]
[null,20]
[null,21]
[null,22]
[null,23]
[null,24]
[null,25]
[null,26]
[null,27]
[null,28]
[null,29,null,"."]
[null,30,null,"."]
[null,31,null,"."]
[]
[null,"عدد المهام","يحتاج دعم مدير المستشفى","منجزة","متأخرة","منتظرة","جاري العمل عليها"]
[null,{"$f":"SUM(C38,D38,E38,F38,G38)","v":0},{"$f":"COUNTIF(D5:D35,C37)","v":0},{"$f":"COUNTIF(D5:D35,D37)","v":0},{"$f":"COUNTIF(D5:D35,E37)","v":0},{"$f":"COUNTIF(D5:D35,F37)","v":0},{"$f":"COUNTIF(D5:D35,G37)","v":0}]

{"sheet":"الطوارئ","index":16,"n_rows":17,"n_cols":8,"rows_kept":17,"cut":false,"hidden":false,"merged":[[1,2,1,4]]}
[]
[null,null,"تقرير قسم (أطباء الطوارئ  ) بتاريخ  2020/07/10",null,null,null,"معدل الانجاز"]
[null,null,null,null,null,null,{"$f":"D17/(B17-C17)","v":0}]
[null,"م","المهام الخاصة بمدير قسم الطوارئ","الحالة","التاريخ ","الادارة المسؤولة ","الإجراءات المتخذة "]
[null,1,"تنظيم عملية استلام الطبيب للمراجع ","منتظرة",null,null,null,{"$f":"Sheet1!D1","v":"Sheet1!$A$1:$A$6"}]
[null,2,"تحديد مشرف أطباء لكل فترة","منتظرة"]
[null,3,"تحديد مهام كل طبيب/ـه بطريقة قابلة للقياس والتقييم وبما يضمن معرفة المريض من هو الطبيب/ـه المعني بتقديم الخدمة له فور دخوله للطوارئ ","منتظرة"]
[null,4,"تكليف طبيب/ـة الفرز السريري بتحديد الطبيب/ـه المسؤول عن خدمة المريض بالإسم ووضع الخطة التنظيمة لضمان العدالة بين الأطباء داخل الطوارئ وبما يحقق حصول المراجع على الخدمة العلاجية ويحدد مكمن الخلل ان وجد والمتسبب بكل دقة ووضوح","منتظرة"]
[null,5,"جدولة الأطباء المصاحبين للإحالات الطبية لكل فترة بكل دقة","منتظرة"]
[null,6,"احصاء عدد المرضى لكل طبيب/ـه في كل نوبه لقياس الانتاجية","منتظرة"]
[null,7,"تنظيم الية موثقة وميسرة لتقييم رضى المراجعين عن الخدمة المقدمة من كل طبيب/ـه","منتظرة"]
[null,8,"تحديد طبيب متميز  لكل اسبوع بآلية شفافة تعتمد بشكل اساسي على العدالة والتقييم المستمر على أن تكون مبنية على رضى المراجعبن","منتظرة"]
[null,9,"تزويد مدير المستشفى بالاحتياجات البشرية والتجهيزات اللازمة لتطبيق ماسبق وفقا للامكانيات المتاحة","منتظرة"]
[null,10,"حضور الاجتماعات الدورية لمناقشة التقدم في تطبيق ما ذكر أعلاه","منتظرة"]
[]
[null,"عدد المهام","يحتاج دعم مدير المستشفى","منجزة","متأخرة","منتظرة","جاري العمل عليها"]
[null,{"$f":"SUM(C17,D17,E17,F17,G17)","v":10},{"$f":"COUNTIF(D5:D14,C16)","v":0},{"$f":"COUNTIF(D5:D14,D16)","v":0},{"$f":"COUNTIF(D5:D14,E16)","v":0},{"$f":"COUNTIF(D5:D14,F16)","v":10},{"$f":"COUNTIF(D5:D14,G16)","v":0}]

{"sheet":"ت طوارئ","index":17,"n_rows":17,"n_cols":8,"rows_kept":17,"cut":false,"hidden":false,"merged":[[1,2,1,4]]}
[]
[null,null,"تقرير قسم ( تمريض الطوارئ ) بتاريخ  2020/07/10",null,null,null,"معدل الانجاز"]
[null,null,null,null,null,null,{"$f":"D17/(B17-C17)","v":0}]
[null,"م","المهام الخاصة بمشرف تمريض الطوارئ","الحالة","التاريخ ","الادارة المسؤولة ","الإجراءات المتخذة "]
[null,1,"تنظيم عملية استلام التمريض للمراجع ","منتظرة","2020-12-07",null,null,{"$f":"Sheet1!D1","v":"Sheet1!$A$1:$A$6"}]
[null,2,"تحديد مشرف تمريض لكل فترة","منتظرة","2020-12-07"]
[null,3,"تحديد مهام كل ممرض/ـه بطريقة قابلة للقياس والتقييم وبما يضمن معرفة المريض من هو الممرض/ـه المعني بتقديم الخدمة له فور دخوله للطوارئ ","متأخرة","2020-12-07"]
[null,4,"تكليف ممرض/ـة الفرز السريري بتحديد الممرض/ـه المسؤول عن خدمة المريض بالإسم ووضع الالية لضمان العدالة بين طاقم التمريض داخل الطوارئ وبما يحقق حصول المراجع على الخدمة العلاجية ويحدد مكمن الخلل ان وجد والمتسبب بكل دقة ووضوح","منتظرة","2020-12-07"]
[null,5,"عدم السماح للمريض أو المرافق بإيصال العينات الى المختبر تحت أي ظرف","منتظرة","2020-12-07"]
[null,6,"تحديد ممرض/ـه مسؤول/ـه عن مخالفات مكافحة العدوى والنفايات الطبية  لكل غرفة من غرف الطواريء لكل فترة","منتظرة","2020-12-07"]
[null,7,"جدولة التمريض المرافق للإحالات الطبية لكل فترة بكل دقة","منتظرة","2020-12-07"]
[null,8,"احصاء عدد المرضى لكل ممرض/ـه في كل فترة لقياس الانتاجية","منتظرة","2020-12-07"]
[null,9,"تزويد مدير المستشفى بالاحتياجات البشرية والتجهيزات اللازمة لتطبيق ماسبق وفقا للامكانيات المتاحة","منتظرة","2020-12-07"]
[null,10,"حضور الاجتماعات الدورية لمناقشة التقدم في تطبيق ما ذكر أعلاه","منتظرة","16/07/2020"]
[]
[null,"عدد المهام","يحتاج دعم مدير المستشفى","منجزة","متأخرة","منتظرة","جاري العمل عليها"]
[null,{"$f":"SUM(C17,D17,E17,F17,G17)","v":10},{"$f":"COUNTIF(D5:D14,C16)","v":0},{"$f":"COUNTIF(D5:D14,D16)","v":0},{"$f":"COUNTIF(D5:D14,E16)","v":1},{"$f":"COUNTIF(D5:D14,F16)","v":9},{"$f":"COUNTIF(D5:D14,G16)","v":0}]

{"sheet":"الأمن","index":18,"n_rows":38,"n_cols":8,"rows_kept":38,"cut":false,"hidden":false,"merged":[[1,2,1,4]]}
[]
[null,null,"مهام رئيس قسم (    ) بتاريخ  2023/09/01",null,null,null,"معدل الانجاز"]
[null,null,null,null,null,null,{"$f":"D38/(B38-C38)","v":{"$error":"#DIV/0!"}}]
[null,"م","المهام الخاصة برئيس قسم ","الحالة","التاريخ ","الادارة المسؤولة ","الإجراءات المتخذة "]
[null,1,null,null,null,null,null,{"$f":"Sheet1!D1","v":"Sheet1!$A$1:$A$6"}]
[null,2,null,"."]
[null,3,null,"."]
[null,4,null,"."]
[null,5]
[null,6,null,"."]
[null,7]
[null,8]
[null,9]
[null,10]
[null,11]
[null,12]
[null,13]
[null,14]
[null,15]
[null,16]
[null,17]
[null,18]
[null,19]
[null,20]
[null,21]
[null,22]
[null,23]
[null,24]
[null,25]
[null,26]
[null,27]
[null,28]
[null,29,null,"."]
[null,30,null,"."]
[null,31,null,"."]
[]
[null,"عدد المهام","يحتاج دعم مدير المستشفى","منجزة","متأخرة","منتظرة","جاري العمل عليها"]
[null,{"$f":"SUM(C38,D38,E38,F38,G38)","v":0},{"$f":"COUNTIF(D5:D35,C37)","v":0},{"$f":"COUNTIF(D5:D35,D37)","v":0},{"$f":"COUNTIF(D5:D35,E37)","v":0},{"$f":"COUNTIF(D5:D35,F37)","v":0},{"$f":"COUNTIF(D5:D35,G37)","v":0}]

{"sheet":"الوفيات","index":19,"n_rows":38,"n_cols":8,"rows_kept":38,"cut":false,"hidden":false,"merged":[[1,2,1,4]]}
[]
[null,null,"مهام رئيس قسم (    ) بتاريخ  2023/09/01",null,null,null,"معدل الانجاز"]
[null,null,null,null,null,null,{"$f":"D38/(B38-C38)","v":{"$error":"#DIV/0!"}}]
[null,"م","المهام الخاصة برئيس قسم ","الحالة","التاريخ ","الادارة المسؤولة ","الإجراءات المتخذة "]
[null,1,null,null,null,null,null,{"$f":"Sheet1!D1","v":"Sheet1!$A$1:$A$6"}]
[null,2,null,"."]
[null,3,null,"."]
[null,4,null,"."]
[null,5]
[null,6,null,"."]
[null,7]
[null,8]
[null,9]
[null,10]
[null,11]
[null,12]
[null,13]
[null,14]
[null,15]
[null,16]
[null,17]
[null,18]
[null,19]
[null,20]
[null,21]
[null,22]
[null,23]
[null,24]
[null,25]
[null,26]
[null,27]
[null,28]
[null,29,null,"."]
[null,30,null,"."]
[null,31,null,"."]
[]
[null,"عدد المهام","يحتاج دعم مدير المستشفى","منجزة","متأخرة","منتظرة","جاري العمل عليها"]
[null,{"$f":"SUM(C38,D38,E38,F38,G38)","v":0},{"$f":"COUNTIF(D5:D35,C37)","v":0},{"$f":"COUNTIF(D5:D35,D37)","v":0},{"$f":"COUNTIF(D5:D35,E37)","v":0},{"$f":"COUNTIF(D5:D35,F37)","v":0},{"$f":"COUNTIF(D5:D35,G37)","v":0}]

{"sheet":"تجربة المريض","index":20,"n_rows":38,"n_cols":8,"rows_kept":38,"cut":false,"hidden":false,"merged":[[1,2,1,4]]}
[]
[null,null,"مهام رئيس قسم (    ) بتاريخ  2023/09/01",null,null,null,"معدل الانجاز"]
[null,null,null,null,null,null,{"$f":"D38/(B38-C38)","v":{"$error":"#DIV/0!"}}]
[null,"م","المهام الخاصة برئيس قسم ","الحالة","التاريخ ","الادارة المسؤولة ","الإجراءات المتخذة "]
[null,1,null,null,null,null,null,{"$f":"Sheet1!D1","v":"Sheet1!$A$1:$A$6"}]
[null,2,null,"."]
[null,3,null,"."]
[null,4,null,"."]
[null,5]
[null,6,null,"."]
[null,7]
[null,8]
[null,9]
[null,10]
[null,11]
[null,12]
[null,13]
[null,14]
[null,15]
[null,16]
[null,17]
[null,18]
[null,19]
[null,20]
[null,21]
[null,22]
[null,23]
[null,24]
[null,25]
[null,26]
[null,27]
[null,28]
[null,29,null,"."]
[null,30,null,"."]
[null,31,null,"."]
[]
[null,"عدد المهام","يحتاج دعم مدير المستشفى","منجزة","متأخرة","منتظرة","جاري العمل عليها"]
[null,{"$f":"SUM(C38,D38,E38,F38,G38)","v":0},{"$f":"COUNTIF(D5:D35,C37)","v":0},{"$f":"COUNTIF(D5:D35,D37)","v":0},{"$f":"COUNTIF(D5:D35,E37)","v":0},{"$f":"COUNTIF(D5:D35,F37)","v":0},{"$f":"COUNTIF(D5:D35,G37)","v":0}]

{"sheet":"العدوى","index":21,"n_rows":38,"n_cols":8,"rows_kept":38,"cut":false,"hidden":false,"merged":[[1,2,1,4]]}
[]
[null,null,"مهام رئيس قسم (    ) بتاريخ  2023/09/01",null,null,null,"معدل الانجاز"]
[null,null,null,null,null,null,{"$f":"D38/(B38-C38)","v":{"$error":"#DIV/0!"}}]
[null,"م","المهام الخاصة برئيس قسم ","الحالة","التاريخ ","الادارة المسؤولة ","الإجراءات المتخذة "]
[null,1,null,null,null,null,null,{"$f":"Sheet1!D1","v":"Sheet1!$A$1:$A$6"}]
[null,2,null,"."]
[null,3,null,"."]
[null,4,null,"."]
[null,5]
[null,6,null,"."]
[null,7]
[null,8]
[null,9]
[null,10]
[null,11]
[null,12]
[null,13]
[null,14]
[null,15]
[null,16]
[null,17]
[null,18]
[null,19]
[null,20]
[null,21]
[null,22]
[null,23]
[null,24]
[null,25]
[null,26]
[null,27]
[null,28]
[null,29,null,"."]
[null,30,null,"."]
[null,31,null,"."]
[]
[null,"عدد المهام","يحتاج دعم مدير المستشفى","منجزة","متأخرة","منتظرة","جاري العمل عليها"]
[null,{"$f":"SUM(C38,D38,E38,F38,G38)","v":0},{"$f":"COUNTIF(D5:D35,C37)","v":0},{"$f":"COUNTIF(D5:D35,D37)","v":0},{"$f":"COUNTIF(D5:D35,E37)","v":0},{"$f":"COUNTIF(D5:D35,F37)","v":0},{"$f":"COUNTIF(D5:D35,G37)","v":0}]

{"sheet":"العلاقات العامة","index":22,"n_rows":38,"n_cols":8,"rows_kept":38,"cut":false,"hidden":false,"merged":[[1,2,1,4]]}
[]
[null,null,"مهام رئيس قسم (    ) بتاريخ  2023/09/01",null,null,null,"معدل الانجاز"]
[null,null,null,null,null,null,{"$f":"D38/(B38-C38)","v":{"$error":"#DIV/0!"}}]
[null,"م","المهام الخاصة برئيس قسم ","الحالة","التاريخ ","الادارة المسؤولة ","الإجراءات المتخذة "]
[null,1,null,null,null,null,null,{"$f":"Sheet1!D1","v":"Sheet1!$A$1:$A$6"}]
[null,2,null,"."]
[null,3,null,"."]
[null,4,null,"."]
[null,5]
[null,6,null,"."]
[null,7]
[null,8]
[null,9]
[null,10]
[null,11]
[null,12]
[null,13]
[null,14]
[null,15]
[null,16]
[null,17]
[null,18]
[null,19]
[null,20]
[null,21]
[null,22]
[null,23]
[null,24]
[null,25]
[null,26]
[null,27]
[null,28]
[null,29,null,"."]
[null,30,null,"."]
[null,31,null,"."]
[]
[null,"عدد المهام","يحتاج دعم مدير المستشفى","منجزة","متأخرة","منتظرة","جاري العمل عليها"]
[null,{"$f":"SUM(C38,D38,E38,F38,G38)","v":0},{"$f":"COUNTIF(D5:D35,C37)","v":0},{"$f":"COUNTIF(D5:D35,D37)","v":0},{"$f":"COUNTIF(D5:D35,E37)","v":0},{"$f":"COUNTIF(D5:D35,F37)","v":0},{"$f":"COUNTIF(D5:D35,G37)","v":0}]

{"sheet":"التغذية","index":23,"n_rows":38,"n_cols":10,"rows_kept":38,"cut":false,"hidden":false,"merged":[]}
[]
[null,null,"مهام رئيس قسم (    ) بتاريخ  2023/09/01",null,null,null,null,null,"معدل الانجاز"]
[null,null,null,null,null,null,null,null,{"$f":"D38/(B38-C38)","v":{"$error":"#DIV/0!"}}]
[null,"م","المهام الخاصة برئيس قسم ","الحالة","تاريخ البداية","الفترة","تاريخ الانتهاء","الادارة المسؤولة ","الإجراءات المتخذة "]
[null,1,"اصلاح التكييف",".","2024-07-01",5,null,null,null,{"$f":"Sheet1!D1","v":"Sheet1!$A$1:$A$6"}]
[null,2,"خ"]
[null,3]
[null,4,null,"."]
[null,5]
[null,6,null,"."]
[null,7]
[null,8]
[null,9]
[null,10]
[null,11]
[null,12]
[null,13]
[null,14]
[null,15]
[null,16]
[null,17]
[null,18]
[null,19]
[null,20]
[null,21]
[null,22]
[null,23]
[null,24]
[null,25]
[null,26]
[null,27]
[null,28]
[null,29,null,"."]
[null,30,null,"."]
[null,31,null,"."]
[]
[null,"عدد المهام","يحتاج دعم مدير المستشفى","منجزة","متأخرة",null,null,"منتظرة","جاري العمل عليها"]
[null,{"$f":"SUM(C38,D38,E38,H38,I38)","v":0},{"$f":"COUNTIF(D5:D35,C37)","v":0},{"$f":"COUNTIF(D5:D35,D37)","v":0},{"$f":"COUNTIF(D5:D35,E37)","v":0},null,null,{"$f":"COUNTIF(D5:D35,H37)","v":0},{"$f":"COUNTIF(D5:D35,I37)","v":0}]

{"sheet":"التدريب","index":24,"n_rows":38,"n_cols":8,"rows_kept":38,"cut":false,"hidden":false,"merged":[[1,2,1,4]]}
[]
[null,null,"مهام رئيس قسم (    ) بتاريخ  2023/09/01",null,null,null,"معدل الانجاز"]
[null,null,null,null,null,null,{"$f":"D38/(B38-C38)","v":{"$error":"#DIV/0!"}}]
[null,"م","المهام الخاصة برئيس قسم ","الحالة","التاريخ ","الادارة المسؤولة ","الإجراءات المتخذة "]
[null,1,null,null,null,null,null,{"$f":"Sheet1!D1","v":"Sheet1!$A$1:$A$6"}]
[null,2,null,"."]
[null,3,null,"."]
[null,4,null,"."]
[null,5]
[null,6,null,"."]
[null,7]
[null,8]
[null,9]
[null,10]
[null,11]
[null,12]
[null,13]
[null,14]
[null,15]
[null,16]
[null,17]
[null,18]
[null,19]
[null,20]
[null,21]
[null,22]
[null,23]
[null,24]
[null,25]
[null,26]
[null,27]
[null,28]
[null,29,null,"."]
[null,30,null,"."]
[null,31,null,"."]
[]
[null,"عدد المهام","يحتاج دعم مدير المستشفى","منجزة","متأخرة","منتظرة","جاري العمل عليها"]
[null,{"$f":"SUM(C38,D38,E38,F38,G38)","v":0},{"$f":"COUNTIF(D5:D35,C37)","v":0},{"$f":"COUNTIF(D5:D35,D37)","v":0},{"$f":"COUNTIF(D5:D35,E37)","v":0},{"$f":"COUNTIF(D5:D35,F37)","v":0},{"$f":"COUNTIF(D5:D35,G37)","v":0}]

{"sheet":"الإدارة المناوبة","index":25,"n_rows":38,"n_cols":8,"rows_kept":38,"cut":false,"hidden":false,"merged":[[1,2,1,4]]}
[]
[null,null,"مهام رئيس قسم (    ) بتاريخ  2023/09/01",null,null,null,"معدل الانجاز"]
[null,null,null,null,null,null,{"$f":"D38/(B38-C38)","v":{"$error":"#DIV/0!"}}]
[null,"م","المهام الخاصة برئيس قسم ","الحالة","التاريخ ","الادارة المسؤولة ","الإجراءات المتخذة "]
[null,1,null,null,null,null,null,{"$f":"Sheet1!D1","v":"Sheet1!$A$1:$A$6"}]
[null,2,null,"."]
[null,3,null,"."]
[null,4,null,"."]
[null,5]
[null,6,null,"."]
[null,7]
[null,8]
[null,9]
[null,10]
[null,11]
[null,12]
[null,13]
[null,14]
[null,15]
[null,16]
[null,17,null,"."]
[null,18]
[null,19]
[null,20]
[null,21]
[null,22]
[null,23]
[null,24]
[null,25]
[null,26]
[null,27]
[null,28]
[null,29,null,"."]
[null,30,null,"."]
[null,31,null,"."]
[]
[null,"عدد المهام","يحتاج دعم مدير المستشفى","منجزة","متأخرة","منتظرة","جاري العمل عليها"]
[null,{"$f":"SUM(C38,D38,E38,F38,G38)","v":0},{"$f":"COUNTIF(D5:D35,C37)","v":0},{"$f":"COUNTIF(D5:D35,D37)","v":0},{"$f":"COUNTIF(D5:D35,E37)","v":0},{"$f":"COUNTIF(D5:D35,F37)","v":0},{"$f":"COUNTIF(D5:D35,G37)","v":0}]

{"sheet":"العلاج الطبيعي","index":26,"n_rows":38,"n_cols":8,"rows_kept":38,"cut":false,"hidden":false,"merged":[[1,2,1,4]]}
[]
[null,null,"مهام رئيس قسم (    ) بتاريخ  2023/09/01",null,null,null,"معدل الانجاز"]
[null,null,null,null,null,null,{"$f":"D38/(B38-C38)","v":{"$error":"#DIV/0!"}}]
[null,"م","المهام الخاصة برئيس قسم ","الحالة","التاريخ ","الادارة المسؤولة ","الإجراءات المتخذة "]
[null,1,null,null,null,null,null,{"$f":"Sheet1!D1","v":"Sheet1!$A$1:$A$6"}]
[null,2,null,"."]
[null,3,null,"."]
[null,4,null,"."]
[null,5]
[null,6,null,"."]
[null,7]
[null,8]
[null,9]
[null,10]
[null,11]
[null,12]
[null,13]
[null,14]
[null,15]
[null,16]
[null,17]
[null,18]
[null,19]
[null,20]
[null,21]
[null,22]
[null,23]
[null,24]
[null,25]
[null,26]
[null,27]
[null,28]
[null,29,null,"."]
[null,30,null,"."]
[null,31,null,"."]
[]
[null,"عدد المهام","يحتاج دعم مدير المستشفى","منجزة","متأخرة","منتظرة","جاري العمل عليها"]
[null,{"$f":"SUM(C38,D38,E38,F38,G38)","v":0},{"$f":"COUNTIF(D5:D35,C37)","v":0},{"$f":"COUNTIF(D5:D35,D37)","v":0},{"$f":"COUNTIF(D5:D35,E37)","v":0},{"$f":"COUNTIF(D5:D35,F37)","v":0},{"$f":"COUNTIF(D5:D35,G37)","v":0}]

{"sheet":"تنويم الرجال","index":27,"n_rows":38,"n_cols":8,"rows_kept":38,"cut":false,"hidden":false,"merged":[[1,2,1,4]]}
[]
[null,null,"مهام رئيس قسم (    ) بتاريخ  2023/09/01",null,null,null,"معدل الانجاز"]
[null,null,null,null,null,null,{"$f":"D38/(B38-C38)","v":{"$error":"#DIV/0!"}}]
[null,"م","المهام الخاصة برئيس قسم ","الحالة","التاريخ ","الادارة المسؤولة ","الإجراءات المتخذة "]
[null,1,null,null,null,null,null,{"$f":"Sheet1!D1","v":"Sheet1!$A$1:$A$6"}]
[null,2,null,"."]
[null,3,null,"."]
[null,4,null,"."]
[null,5]
[null,6,null,"."]
[null,7]
[null,8]
[null,9]
[null,10]
[null,11]
[null,12]
[null,13]
[null,14]
[null,15]
[null,16]
[null,17]
[null,18]
[null,19]
[null,20]
[null,21]
[null,22]
[null,23]
[null,24]
[null,25]
[null,26]
[null,27]
[null,28]
[null,29,null,"."]
[null,30,null,"."]
[null,31,null,"."]
[]
[null,"عدد المهام","يحتاج دعم مدير المستشفى","منجزة","متأخرة","منتظرة","جاري العمل عليها"]
[null,{"$f":"SUM(C38,D38,E38,F38,G38)","v":0},{"$f":"COUNTIF(D5:D35,C37)","v":0},{"$f":"COUNTIF(D5:D35,D37)","v":0},{"$f":"COUNTIF(D5:D35,E37)","v":0},{"$f":"COUNTIF(D5:D35,F37)","v":0},{"$f":"COUNTIF(D5:D35,G37)","v":0}]

{"sheet":"تنويم النساء","index":28,"n_rows":38,"n_cols":8,"rows_kept":38,"cut":false,"hidden":false,"merged":[[1,2,1,4]]}
[]
[null,null,"مهام رئيس قسم (    ) بتاريخ  2023/09/01",null,null,null,"معدل الانجاز"]
[null,null,null,null,null,null,{"$f":"D38/(B38-C38)","v":{"$error":"#DIV/0!"}}]
[null,"م","المهام الخاصة برئيس قسم ","الحالة","التاريخ ","الادارة المسؤولة ","الإجراءات المتخذة "]
[null,1,null,null,null,null,null,{"$f":"Sheet1!D1","v":"Sheet1!$A$1:$A$6"}]
[null,2,null,"."]
[null,3,null,"."]
[null,4,null,"."]
[null,5]
[null,6,null,"."]
[null,7]
[null,8]
[null,9]
[null,10]
[null,11]
[null,12]
[null,13]
[null,14]
[null,15]
[null,16]
[null,17]
[null,18]
[null,19]
[null,20]
[null,21]
[null,22]
[null,23]
[null,24]
[null,25]
[null,26]
[null,27]
[null,28]
[null,29,null,"."]
[null,30,null,"."]
[null,31,null,"."]
[]
[null,"عدد المهام","يحتاج دعم مدير المستشفى","منجزة","متأخرة","منتظرة","جاري العمل عليها"]
[null,{"$f":"SUM(C38,D38,E38,F38,G38)","v":0},{"$f":"COUNTIF(D5:D35,C37)","v":0},{"$f":"COUNTIF(D5:D35,D37)","v":0},{"$f":"COUNTIF(D5:D35,E37)","v":0},{"$f":"COUNTIF(D5:D35,F37)","v":0},{"$f":"COUNTIF(D5:D35,G37)","v":0}]